fUSD/lending_fUSD_20241125
["ID","MTS","AMOUNT","RATE_DAILY","PERIOD"]
[343250328,1732532673509,-500.0,0.00040424,21]
[343250329,1732532673539,-529.56313626,0.00040424,21]
[343250330,1732532673568,-500.0,0.00040424,21]
[343250331,1732532673598,-500.0,0.00040424,21]
[343250332,1732532673627,-500.0,0.00040424,21]
[343250333,1732532673656,-563.67974094,0.00040424,21]
[343250334,1732532673685,-1259.85,0.00040424,21]
[343250335,1732532673712,-500.0,0.00040424,21]
[343250336,1732532673742,-500.0,0.00040424,21]
[343250337,1732532673770,-500.0,0.00040424,21]
[343250338,1732532673798,-828.92,0.00040424,21]
[343250339,1732532673823,-500.0,0.00040424,21]
[343250340,1732532673849,-500.0,0.00040424,21]
[343250341,1732532673876,-500.0,0.00040424,21]
[343250342,1732532673902,-500.0,0.00040424,21]
[343250343,1732532673928,-500.0,0.00040424,21]
[343250344,1732532673956,-3065.29,0.00040424,21]
[343250345,1732532673982,-500.0,0.00040424,21]
[343250346,1732532674008,-581.901616,0.00040424,14]
[343250347,1732532674034,-500.0,0.00040424,21]
[343250348,1732532674066,-581.901616,0.00040424,14]
[343250349,1732532674093,-500.0,0.00040424,21]
[343250350,1732532674119,-702.07,0.00040424,21]
[343250351,1732532674145,-151.0,0.00040424,14]
[343250352,1732532674170,-500.0,0.00040424,21]
[343250353,1732532674198,-267.10164122,0.00040424,21]
[343250354,1732532674225,-500.0,0.00040424,21]
[343250355,1732532674250,-759.78,0.00040424,21]
[343250356,1732532674275,-500.0,0.00040424,21]
[343250357,1732532674306,-500.0,0.00040424,21]
[343250358,1732532674332,-151.0,0.00040424,14]
[343250359,1732532674358,-500.0,0.00040424,21]
[343250360,1732532674384,-500.0,0.00040424,21]
[343250361,1732532674412,-390.79830122,0.00040424,21]
[343250362,1732532674439,-3422.22,0.00040424,21]
[343250363,1732532674464,-500.0,0.00040424,21]
[343250364,1732532674489,-554.6836392,0.00040424,21]
[343250365,1732532674515,-930.71,0.00040425,21]
[343250366,1732532674541,-500.0,0.00040425,21]
[343250367,1732532674567,-977.78,0.00040425,21]
[343250368,1732532674591,-170.90077644,0.00040425,21]
[343250369,1732532674617,-500.0,0.00040425,21]
[343250370,1732532674642,-500.0,0.00040425,21]
[343250371,1732532674668,-1187.33,0.00040425,21]
[343250372,1732532674695,-910.51,0.00040425,21]
[343250373,1732532674721,-824.84,0.00040425,21]
[343250374,1732532674747,-1094.91,0.00040425,21]
[343250375,1732532674771,-500.0,0.00040425,21]
[343250376,1732532674797,-415.48801752,0.00040425,21]
[343250377,1732532674822,-500.0,0.00040425,21]
[343250378,1732532674848,-922.35,0.00040425,21]
[343250379,1732532674873,-500.0,0.00040425,7]
[343250380,1732532674899,-500.0,0.00040425,21]
[343250381,1732532674927,-500.0,0.00040425,21]
[343250382,1732532674955,-880.06,0.00040425,21]
[343250383,1732532674982,-500.0,0.00040425,21]
[343250384,1732532675007,-2617.3,0.00040425,2]
[343250385,1732532675033,-500.0,0.00040425,21]
[343250386,1732532675059,-500.0,0.00040425,21]
[343250387,1732532675087,-500.0,0.00040425,21]
[343250388,1732532675114,-500.0,0.00040425,21]
[343250389,1732532675140,-1017.78,0.00040425,21]
[343250390,1732532675167,-639.72823121,0.00040425,21]
[343250391,1732532675194,-500.0,0.00040425,21]
[343250392,1732532675219,-1037.63,0.00040425,21]
[343250393,1732532675244,-500.0,0.00040425,21]
[343250394,1732532675271,-777.53,0.00040425,21]
[343250395,1732532675297,-1089.67,0.00040425,21]
[343250396,1732532675323,-178.20231734,0.00040425,21]
[343250397,1732532675347,-500.0,0.00040425,21]
[343250398,1732532675372,-551.59,0.00040425,21]
[343250399,1732532675398,-500.0,0.00040425,21]
[343250400,1732532675423,-500.0,0.00040425,21]
[343250401,1732532675453,-500.0,0.00040425,21]
[343250402,1732532675478,-500.0,0.00040425,21]
[343250403,1732532675503,-500.0,0.00040425,21]
[343250404,1732532675529,-790.58,0.00040425,21]
[343250405,1732532675554,-4250.59,0.00040425,21]
[343250406,1732532675580,-500.0,0.00040425,21]
[343250407,1732532675607,-500.0,0.00040425,21]
[343250408,1732532675633,-1539.48,0.00040425,21]
[343250409,1732532675906,-961.47,0.00040425,21]
[343250410,1732532675940,-500.0,0.00040425,21]
[343250411,1732532675974,-500.0,0.00040425,21]
[343250412,1732532676003,-1576.46,0.00040425,21]
[343250413,1732532676031,-500.0,0.00040425,21]
[343250414,1732532676059,-500.0,0.00040425,21]
[343250415,1732532676090,-500.0,0.00040425,21]
[343250416,1732532676120,-504.82,0.00040425,21]
[343250417,1732532676149,-542.31,0.00040425,21]
[343250418,1732532676176,-500.0,0.00040425,21]
[343250419,1732532676207,-725.84,0.00040425,21]
[343250420,1732532676234,-500.0,0.00040425,21]
[343250421,1732532676260,-500.0,0.00040425,21]
[343250422,1732532676285,-2192.49,0.00040425,21]
[343250423,1732532676311,-1580.0,0.00040425,21]
[343250424,1732532676336,-671.48,0.00040425,21]
[343250425,1732532676364,-633.88,0.00040425,21]
[343250426,1732532676389,-613.70537365,0.00040425,21]
[343250427,1732532676415,-151.0,0.00040425,14]
[343250428,1732532676443,-500.0,0.00040425,21]
[343250429,1732532676468,-151.0,0.00040425,14]
[343250430,1732532676493,-500.0,0.00040425,21]
[343250431,1732532676519,-500.0,0.00040425,21]
[343250432,1732532676548,-1292.43,0.00040425,21]
[343250433,1732532676573,-500.0,0.00040425,21]
[343250434,1732532676596,-151.0,0.00040425,14]
[343250435,1732532676621,-700.87,0.00040425,21]
[343250436,1732532676645,-687.476365,0.00040425,14]
[343250437,1732532676671,-687.476365,0.00040425,14]
[343250438,1732532676696,-500.0,0.00040425,21]
[343250439,1732532676723,-168.601148,0.00040425,14]
[343250440,1732532676749,-713.25,0.00040425,21]
[343250441,1732532676775,-500.0,0.00040425,21]
[343250442,1732532676798,-151.0,0.00040425,14]
[343250443,1732532676823,-168.601148,0.00040425,14]
[343250444,1732532676848,-875.61,0.00040425,21]
[343250445,1732532676872,-151.0,0.00040425,14]
[343250446,1732532676897,-5528.84,0.00040425,21]
[343250447,1732532676922,-500.0,0.00040425,21]
[343250448,1732532676949,-1499.87,0.00040425,21]
[343250449,1732532676977,-1922.44,0.00040425,21]
[343250450,1732532677002,-500.0,0.00040425,21]
[343250451,1732532677027,-500.0,0.00040425,21]
[343250452,1732532677053,-500.0,0.00040425,21]
[343250453,1732532677082,-153.17,0.00040537,2]
[343250454,1732532677108,-600.33,0.00040545,21]
[343250455,1732532677134,-1224.61,0.00040546,21]
[343250456,1732532677167,-500.0,0.00040546,21]
[343250457,1732532677195,-500.0,0.00040546,21]
[343250458,1732532677221,-500.0,0.00040546,21]
[343250459,1732532677250,-500.0,0.00040546,21]
[343250460,1732532677279,-1154.27,0.00040546,21]
[343250461,1732532677306,-924.22,0.00040546,21]
[343250462,1732532677334,-270.52253937,0.00040546,21]
[343250463,1732532677362,-696.89,0.00040546,21]
[343250464,1732532677390,-3150.76,0.00040546,21]
[343250465,1732532677419,-9504.79,0.00040546,21]
[343250466,1732532677450,-7938.89,0.00040546,21]
[343250467,1732532677478,-1024.94,0.00040546,21]
[343250468,1732532677506,-151.0,0.00040546,14]
[343250469,1732532677533,-304.86708784,0.00040546,21]
[343250470,1732532677561,-151.0,0.00040546,14]
[343250471,1732532677589,-500.0,0.00040546,21]
[343250472,1732532677617,-3978.3,0.00040546,21]
[343250473,1732532677646,-500.0,0.00040546,21]
[343250474,1732532677671,-151.0,0.00040546,14]
[343250475,1732532677698,-1146.63,0.00040546,21]
[343250476,1732532677724,-1748.64,0.00040546,21]
[343250477,1732532677750,-5468.25,0.00040546,21]
[343250478,1732532677776,-151.0,0.00040546,14]
[343250479,1732532677802,-708.11,0.00040546,21]
[343250480,1732532677828,-500.0,0.00040546,21]
[343250481,1732532677854,-500.0,0.00040546,21]
[343250482,1732532677881,-1409.15,0.00040546,21]
[343250483,1732532677908,-758.58,0.00040546,21]
[343250484,1732532677938,-1250.960024,0.00040546,14]
[343250485,1732532677969,-1250.960024,0.00040546,14]
[343250486,1732532677997,-5734.8,0.00040546,21]
[343250487,1732532678024,-677.5,0.00040546,21]
[343250488,1732532678052,-580.49,0.00040546,21]
[343250489,1732532678083,-151.0,0.00040546,14]
[343250490,1732532678110,-1167.03,0.00040546,21]
[343250491,1732532678136,-1719.67,0.00040546,21]
[343250492,1732532678166,-500.0,0.00040546,21]
[343250493,1732532678196,-581.901616,0.00040546,14]
[343250494,1732532678222,-3582.8,0.00040546,21]
[343250495,1732532678249,-581.901616,0.00040546,14]
[343250496,1732532678274,-151.0,0.00040546,14]
[343250497,1732532678300,-500.0,0.00040546,21]
[343250498,1732532678326,-500.0,0.00040546,21]
[343250499,1732532678352,-151.0,0.00040546,14]
[343250500,1732532678379,-151.0,0.00040547,14]
[343250501,1732532678406,-459.381304,0.00040547,14]
[343250502,1732532678435,-4585.2,0.00040547,21]
[343250503,1732532678460,-151.0,0.00040547,14]
[343250504,1732532678485,-459.381304,0.00040547,14]
[343250505,1732532678510,-151.0,0.00040547,14]
[343250506,1732532678536,-9562.63768,0.00040547,14]
[343250507,1732532678563,-851.7,0.00040547,21]
[343250508,1732532678589,-9562.63768,0.00040547,14]
[343250509,1732532678614,-151.0,0.00040547,7]
[343250510,1732532678640,-274.045292,0.00040547,7]
[343250511,1732532678665,-151.0,0.00040547,14]
[343250512,1732532678695,-5410.63,0.00040547,21]
[343250513,1732532678722,-500.0,0.00040547,21]
[343250514,1732532678748,-151.0,0.00040547,14]
[343250515,1732532678773,-151.0,0.00040547,14]
[343250516,1732532678799,-151.0,0.00040547,14]
[343250517,1732532678826,-1973.4,0.00040547,21]
[343250518,1732532678851,-4420.66,0.00040547,21]
[343250519,1732532678877,-161.112775,0.00040547,14]
[343250520,1732532678903,-5984.38,0.00040547,21]
[343250521,1732532678928,-161.112775,0.00040547,14]
[343250522,1732532678959,-151.0,0.00040547,14]
[343250523,1732532678985,-6051.6,0.00040547,21]
[343250524,1732532679012,-151.0,0.00040547,14]
[343250525,1732532679040,-151.0,0.00040547,14]
[343250526,1732532679071,-1300.59,0.00040547,21]
[343250527,1732532679097,-151.0,0.00040547,14]
[343250528,1732532679125,-500.0,0.00040547,21]
[343250529,1732532679152,-1357.91,0.00040547,21]
[343250530,1732532679178,-687.476365,0.00040547,14]
[343250531,1732532679210,-687.476365,0.00040547,14]
[343250532,1732532679379,-3894.59,0.00040547,21]
[343250533,1732532679442,-168.601148,0.00040547,14]
[343250534,1732532679470,-186.312454,0.00040547,14]
[343250535,1732532679499,-14627.41,0.00040547,21]
[343250536,1732532679526,-168.601148,0.00040547,14]
[343250537,1732532679552,-281.850401,0.00040547,14]
[343250538,1732532679579,-635.249999,0.00040547,21]
[343250539,1732532679605,-2412.24,0.00040547,21]
[343250540,1732532679633,-2936.98,0.00040547,21]
[343250541,1732532679659,-316.97752583,0.00040547,21]
[343250542,1732532679688,-500.0,0.00040547,21]
[343250543,1732532679715,-5467.33535411,0.0004058,2]
[343250544,1732532679740,-2387.18190944,0.0004063,15]
[343250545,1732532679766,-500.0,0.00040698,21]
[343250546,1732532679790,-1065.09,0.00040698,21]
[343250547,1732532679814,-500.0,0.00040698,21]
[343250548,1732532679838,-500.0,0.00040698,21]
[343250549,1732532679862,-500.0,0.00040698,21]
[343250550,1732532679887,-500.0,0.00040698,21]
[343250551,1732532679912,-500.0,0.00040698,21]
[343250552,1732532679938,-500.0,0.00040698,21]
[343250553,1732532679964,-1721.9,0.00040698,21]
[343250554,1732532679989,-776.3,0.00040698,21]
[343250555,1732532680015,-500.0,0.00040698,21]
[343250556,1732532680040,-500.0,0.00040698,21]
[343250557,1732532680067,-500.0,0.00040698,21]
[343250558,1732532680095,-500.0,0.00040698,21]
[343250559,1732532680119,-500.0,0.00040698,21]
[343250560,1732532680146,-500.0,0.00040698,21]
[343250561,1732532680172,-500.0,0.00040698,21]
[343250562,1732532680200,-540.03496232,0.00040698,21]
[343250563,1732532680225,-1826.63,0.00040698,21]
[343250564,1732532680250,-2723.73,0.00040698,21]
[343250565,1732532680275,-258.7461975,0.00040698,21]
[343250566,1732532680301,-500.0,0.00040698,21]
[343250567,1732532680325,-951.95,0.00040698,21]
[343250568,1732532680350,-500.0,0.00040698,21]
[343250569,1732532680374,-870.89,0.00040698,21]
[343250570,1732532680405,-2153.49,0.00040698,21]
[343250571,1732532680432,-500.0,0.00040698,21]
[343250572,1732532680462,-500.0,0.00040698,21]
[343250573,1732532680486,-1113.59,0.00040698,21]
[343250574,1732532680511,-659.89,0.00040698,21]
[343250575,1732532680535,-500.0,0.00040698,21]
[343250576,1732532680562,-500.0,0.00040698,21]
[343250577,1732532680591,-500.0,0.00040698,21]
[343250578,1732532680616,-500.0,0.00040698,21]
[343250579,1732532680639,-500.0,0.00040698,21]
[343250580,1732532680664,-500.0,0.00040698,21]
[343250581,1732532680690,-2119.8,0.00040698,21]
[343250582,1732532680714,-500.0,0.00040698,21]
[343250583,1732532680738,-500.0,0.00040698,21]
[343250584,1732532680762,-843.63,0.00040698,2]
[343250585,1732532680785,-2388.93,0.00040698,21]
[343250586,1732532680809,-512.57020481,0.00040698,21]
[343250587,1732532680832,-233.83916081,0.00040698,21]
[343250588,1732532680856,-4974.71,0.00040698,21]
[343250589,1732532680880,-500.0,0.00040698,21]
[343250590,1732532680904,-500.0,0.00040698,21]
[343250591,1732532680929,-500.0,0.00040698,21]
[343250592,1732532680957,-500.0,0.00040698,21]
[343250593,1732532680982,-458.52014671,0.00040698,21]
[343250594,1732532681007,-500.0,0.00040698,21]
[343250595,1732532681033,-500.0,0.00040698,21]
[343250596,1732532681059,-500.0,0.00040698,21]
[343250597,1732532681087,-3450.2,0.00040698,21]
[343250598,1732532681112,-954.85,0.00040698,21]
[343250599,1732532681138,-500.0,0.00040698,21]
[343250600,1732532681168,-500.0,0.00040698,21]
[343250601,1732532681196,-1553.14,0.00040698,21]
[343250602,1732532681221,-500.0,0.00040698,21]
[343250603,1732532681247,-506.52070118,0.00040698,21]
[343250604,1732532681272,-500.0,0.00040698,21]
[343250605,1732532681297,-1151.71,0.00040698,21]
[343250606,1732532681324,-509.62557718,0.00040698,21]
[343250607,1732532681348,-500.0,0.00040698,21]
[343250608,1732532681372,-276.48614981,0.00040698,21]
[343250609,1732532681396,-500.0,0.00040698,21]
[343250610,1732532681420,-506.92664121,0.00040698,21]
[343250611,1732532681449,-500.0,0.00040698,21]
[343250612,1732532681472,-509.39162168,0.00040698,21]
[343250613,1732532681497,-500.0,0.00040698,21]
[343250614,1732532681521,-500.0,0.00040698,21]
[343250615,1732532681546,-593.48,0.00040698,21]
[343250616,1732532681571,-571.37,0.00040698,21]
[343250617,1732532681595,-500.0,0.00040698,21]
[343250618,1732532681620,-500.0,0.00040698,21]
[343250619,1732532681644,-500.0,0.00040698,21]
[343250620,1732532681672,-500.0,0.00040698,21]
[343250621,1732532681700,-500.0,0.00040698,21]
[343250622,1732532681726,-500.0,0.00040698,21]
[343250623,1732532681750,-500.0,0.00040698,21]
[343250624,1732532681775,-894.49,0.00040698,21]
[343250625,1732532681799,-500.0,0.00040698,21]
[343250626,1732532681824,-3520.87,0.00040698,21]
[343250627,1732532681850,-500.0,0.00040698,21]
[343250628,1732532681876,-500.0,0.00040698,21]
[343250629,1732532681916,-9353.77,0.00040698,21]
[343250630,1732532681951,-385.53809576,0.00040698,21]
[343250631,1732532681977,-500.0,0.00040698,21]
[343250632,1732532682002,-500.0,0.00040698,21]
[343250633,1732532682028,-500.0,0.00040698,21]
[343250634,1732532682052,-500.0,0.00040698,21]
[343250635,1732532682079,-500.0,0.00040698,21]
[343250636,1732532682106,-507.11550743,0.00040698,21]
[343250637,1732532682133,-1431.01,0.00040698,21]
[343250638,1732532682158,-500.0,0.00040698,21]
[343250639,1732532682185,-5664.41,0.00040698,21]
[343250640,1732532682213,-500.0,0.00040698,21]
[343250641,1732532682239,-465.61868931,0.00040698,21]
[343250642,1732532682263,-500.0,0.00040698,120]
[343250643,1732532682287,-3466.62,0.00040698,21]
[343250644,1732532682312,-500.0,0.00040698,21]
[343250645,1732532682335,-500.0,0.00040698,21]
[343250646,1732532682359,-500.0,0.00040698,21]
[343250647,1732532682383,-500.0,0.00040698,21]
[343250648,1732532682409,-18248.58,0.00040698,21]
[343250649,1732532682434,-500.0,0.00040698,21]
[343250650,1732532682462,-500.0,0.00040698,21]
[343250651,1732532682699,-500.0,0.00040698,21]
[343250652,1732532682729,-500.0,0.00040698,21]
[343250653,1732532682754,-500.0,0.00040698,21]
[343250654,1732532682778,-512.9,0.00040698,21]
[343250655,1732532682802,-500.0,0.00040698,21]
[343250656,1732532682828,-500.0,0.00040698,21]
[343250657,1732532682870,-500.0,0.00040698,21]
[343250658,1732532682901,-500.0,0.00040698,21]
[343250659,1732532682928,-1656.57,0.00040698,21]
[343250660,1732532682957,-500.0,0.00040698,21]
[343250661,1732532682983,-338.80405139,0.00040698,21]
[343250662,1732532683008,-505.95,0.00040698,21]
[343250663,1732532683033,-500.0,0.00040698,21]
[343250664,1732532683059,-456.48,0.00040698,21]
[343250665,1732532683089,-237.46348109,0.00040698,21]
[343250666,1732532683115,-500.0,0.00040698,21]
[343250667,1732532683142,-151.0,0.00040698,14]
[343250668,1732532683168,-500.0,0.00040698,21]
[343250669,1732532683196,-500.0,0.00040698,21]
[343250670,1732532683223,-250.0,0.00040698,21]
[343250671,1732532683249,-449.5418376,0.00040698,21]
[343250672,1732532683276,-500.0,0.00040698,21]
[343250673,1732532683302,-177.77693421,0.00040698,21]
[343250674,1732532683328,-500.0,0.00040698,21]
[343250675,1732532683352,-1259.85,0.00040698,21]
[343250676,1732532683377,-500.0,0.00040698,21]
[343250677,1732532683402,-500.0,0.00040698,21]
[343250678,1732532683428,-828.92,0.00040698,21]
[343250679,1732532683454,-500.0,0.00040698,21]
[343250680,1732532683479,-500.0,0.00040698,21]
[343250681,1732532683504,-430.6044299,0.00040698,21]
[343250682,1732532683530,-500.0,0.00040698,21]
[343250683,1732532683557,-500.0,0.00040698,21]
[343250684,1732532683582,-3065.29,0.00040698,21]
[343250685,1732532683608,-500.0,0.00040698,21]
[343250686,1732532683635,-581.901616,0.00040698,14]
[343250687,1732532683662,-581.901616,0.00040698,14]
[343250688,1732532683688,-190.27410672,0.00040698,21]
[343250689,1732532683716,-702.07,0.00040698,21]
[343250690,1732532683742,-151.0,0.00040698,14]
[343250691,1732532683769,-500.0,0.00040698,21]
[343250692,1732532683796,-500.0,0.00040698,21]
[343250693,1732532683823,-759.78,0.00040698,21]
[343250694,1732532683849,-500.0,0.00040698,21]
[343250695,1732532683876,-500.0,0.00040698,21]
[343250696,1732532683903,-151.0,0.00040698,14]
[343250697,1732532683930,-500.0,0.00040698,21]
[343250698,1732532683959,-3422.22,0.00040698,21]
[343250699,1732532683987,-159.92522817,0.00040698,21]
[343250700,1732532684016,-155.439369,0.00040698,21]
[343250701,1732532684044,-930.71,0.00040699,21]
[343250702,1732532684073,-500.0,0.00040699,21]
[343250703,1732532684097,-977.78,0.00040699,21]
[343250704,1732532684124,-500.0,0.00040699,21]
[343250705,1732532684154,-500.0,0.00040699,21]
[343250706,1732532684180,-1187.33,0.00040699,21]
[343250707,1732532684207,-910.51,0.00040699,21]
[343250708,1732532684233,-824.84,0.00040699,21]
[343250709,1732532684258,-1094.91,0.00040699,21]
[343250710,1732532684284,-500.0,0.00040699,21]
[343250711,1732532684309,-500.0,0.00040699,21]
[343250712,1732532684334,-922.35,0.00040699,21]
[343250713,1732532684359,-500.0,0.00040699,7]
[343250714,1732532684383,-500.0,0.00040699,21]
[343250715,1732532684408,-880.06,0.00040699,21]
[343250716,1732532684434,-500.0,0.00040699,21]
[343250717,1732532684461,-2617.3,0.00040699,2]
[343250718,1732532684487,-500.0,0.00040699,21]
[343250719,1732532684513,-420.5805125,0.00040699,21]
[343250720,1732532684538,-500.0,0.00040699,21]
[343250721,1732532684563,-612.65546186,0.00040699,21]
[343250722,1732532684589,-1017.78,0.00040699,21]
[343250723,1732532684615,-500.0,0.00040699,21]
[343250724,1732532684639,-1037.63,0.00040699,21]
[343250725,1732532684664,-500.0,0.00040699,21]
[343250726,1732532684691,-777.53,0.00040699,21]
[343250727,1732532684715,-1089.67,0.00040699,21]
[343250728,1732532684739,-151.0,0.00040699,14]
[343250729,1732532684766,-500.0,0.00040699,21]
[343250730,1732532684792,-551.59,0.00040699,21]
[343250731,1732532684818,-500.0,0.00040699,21]
[343250732,1732532684843,-398.458523,0.00040699,14]
[343250733,1732532684867,-398.458523,0.00040699,14]
[343250734,1732532684891,-500.0,0.00040699,21]
[343250735,1732532684916,-594.537871,0.00040699,7]
[343250736,1732532684943,-500.0,0.00040699,21]
[343250737,1732532684971,-151.0,0.00040699,14]
[343250738,1732532684997,-594.537871,0.00040699,7]
[343250739,1732532685024,-500.0,0.00040699,21]
[343250740,1732532685050,-157.379021,0.00040699,14]
[343250741,1732532685080,-151.0,0.00040699,14]
[343250742,1732532685107,-151.0,0.00040699,14]
[343250743,1732532685139,-500.0,0.00040699,21]
[343250744,1732532685167,-790.58,0.00040699,21]
[343250745,1732532685196,-4250.59,0.00040699,21]
[343250746,1732532685222,-500.0,0.00040699,21]
[343250747,1732532685250,-151.0,0.00040699,14]
[343250748,1732532685276,-151.0,0.00040699,14]
[343250749,1732532685301,-151.0,0.00040699,14]
[343250750,1732532685325,-159.109585,0.00040699,14]
[343250751,1732532685351,-159.109585,0.00040699,14]
[343250752,1732532685376,-500.0,0.00040699,21]
[343250753,1732532685402,-1539.48,0.00040699,21]
[343250754,1732532685427,-961.47,0.00040699,21]
[343250755,1732532685454,-500.0,0.00040699,21]
[343250756,1732532685480,-500.0,0.00040699,21]
[343250757,1732532685504,-1576.46,0.00040699,21]
[343250758,1732532685529,-500.0,0.00040699,21]
[343250759,1732532685553,-500.0,0.00040699,21]
[343250760,1732532685578,-500.0,0.00040699,21]
[343250761,1732532685602,-504.82,0.00040699,21]
[343250762,1732532685626,-542.31,0.00040699,21]
[343250763,1732532685651,-500.0,0.00040699,21]
[343250764,1732532685675,-725.84,0.00040699,21]
[343250765,1732532685701,-151.0,0.00040699,14]
[343250766,1732532685884,-455.20830429,0.00040699,21]
[343250767,1732532685910,-151.0,0.00040699,14]
[343250768,1732532685935,-500.0,0.00040699,21]
[343250769,1732532685963,-2192.49,0.00040699,21]
[343250770,1732532685988,-151.0,0.00040699,14]
[343250771,1732532686013,-1580.0,0.00040699,21]
[343250772,1732532686038,-671.48,0.00040699,21]
[343250773,1732532686063,-633.88,0.00040699,21]
[343250774,1732532686092,-151.0,0.00040699,14]
[343250775,1732532686117,-151.0,0.00040699,14]
[343250776,1732532686146,-500.0,0.00040699,21]
[343250777,1732532686175,-161.827358,0.00040699,14]
[343250778,1732532686203,-500.0,0.00040699,21]
[343250779,1732532686234,-619.11612984,0.00040699,21]
[343250780,1732532686265,-1292.43,0.00040699,21]
[343250781,1732532686292,-500.0,0.00040699,21]
[343250782,1732532686318,-1250.960024,0.00040699,14]
[343250783,1732532686342,-700.87,0.00040699,21]
[343250784,1732532686366,-687.476365,0.00040699,14]
[343250785,1732532686391,-1250.960024,0.00040699,14]
[343250786,1732532686415,-687.476365,0.00040699,14]
[343250787,1732532686438,-500.0,0.00040699,21]
[343250788,1732532686465,-713.25,0.00040699,21]
[343250789,1732532686490,-168.601148,0.00040699,14]
[343250790,1732532686514,-500.0,0.00040699,21]
[343250791,1732532686540,-168.601148,0.00040699,14]
[343250792,1732532686564,-875.61,0.00040699,21]
[343250793,1732532686588,-5528.84,0.00040699,21]
[343250794,1732532686612,-500.0,0.00040699,21]
[343250795,1732532686637,-1499.87,0.00040699,21]
[343250796,1732532686661,-1922.44,0.00040699,21]
[343250797,1732532686686,-500.0,0.00040699,21]
[343250798,1732532686716,-500.0,0.00040699,21]
[343250799,1732532686741,-500.0,0.00040699,21]
[343250800,1732532686765,-649.11897119,0.00040721,2]
[343250801,1732532686792,-150.0,0.00040747,2]
[343250802,1732532686817,-150.0,0.00040748,2]
[343250803,1732532686842,-150.0,0.00040749,2]
[343250804,1732532686868,-150.0,0.00040749,2]
[343250805,1732532686892,-150.0,0.00040753,2]
[343250806,1732532686916,-150.0,0.00040767,2]
[343250807,1732532686943,-150.0,0.0004077,2]
[343250808,1732532686970,-500.0,0.00040771,21]
[343250809,1732532686995,-746.0,0.00040771,21]
[343250810,1732532687019,-3255.95,0.00040771,21]
[343250811,1732532687043,-151.0,0.00040771,14]
[343250812,1732532687071,-581.901616,0.00040771,14]
[343250813,1732532687095,-581.901616,0.00040771,14]
[343250814,1732532687119,-151.0,0.00040771,14]
[343250815,1732532687146,-151.0,0.00040771,14]
[343250816,1732532687174,-150.0,0.00040773,2]
[343250817,1732532687200,-366.83440865,0.00040779,30]
[343250818,1732532687225,-162.20580248,0.00040779,30]
[343250819,1732532687251,-150.0,0.00040786,2]
[343250820,1732532687277,-150.0,0.00040787,2]
[343250821,1732532687301,-573.22779383,0.000408,2]
[343250822,1732532687326,-150.0,0.00040811,2]
[343250823,1732532687351,-600.33,0.00040819,21]
[343250824,1732532687378,-2537186.48328195,0.0004082,9]
[343250825,1732532687402,-27365.43875999,0.0004082,22]
[343250826,1732532687425,-151.0,0.0004082,14]
[343250827,1732532687451,-151.0,0.0004082,14]